[Event "Fagernes Chess GM-Swiss 2024"]
[Site "Fagernes"]
[Date "2024.03.24"]
[Round "1.22"]
[White "Chasin, Nico"]
[Black "Mihajlov, Svetoslav"]
[Result "1-0"]
[ECO "D15"]
[WhiteElo "2447"]
[BlackElo "2094"]
[Annotator "TA"]
[PlyCount "95"]
[EventDate "2024.03.25"]
[EventType "swiss"]
[EventCountry "NOR"]
[SourceTitle "playchess.com"]
[Source "ChessBase"]
[SourceQuality "1"]
[TimeControl "40/6000+30:2400+30"]

{[%evp 10,95,29,33,33,38,29,23,31,30,31,35,40,35,44,36,35,32,29,25,43,49,39,10,16,17,17,18,7,12,5,5,5,10,7,-14,10,6,12,-15,0,-45,-29,-31,10,23,6,19,35,13,16,10,14,-8,-5,-18,-16,-31,-35,-24,-29,-27,0,0,12,0,0,0,10,0,139,0,0,0,112,141,141,135,752,752,746,687,679,659,841,840,4722,4133]} 1. d4 {[%emt 0:02:21]} d5 {[%emt 0:00:16]} 2. c4 {[%emt 0:00:18]} c6 {[%emt 0:00:14]} 3. Nf3 {[%emt 0:00:17]} Nf6 {[%emt 0:00:12]} 4. Nc3 {[%emt 0:00:53]} a6 {[%emt 0:00:13]} 5. c5 {[%emt 0:00:31]} Bf5 {[%emt 0:03:49]} 6. Qb3 {[%emt 0:01:21]} Ra7 {[%emt 0:00:54]} 7. Bf4 {[%emt 0:00:12]} Nbd7 {[%emt 0:02:50]} 8. h3 {[%emt 0:02:10]} h6 {[%emt 0:02:58] White has an edge.} 9. e3 {[%emt 0:02:09]} g5 {[%emt 0:03:20]} 10. Bh2 {[%emt 0:00:29]} Bg7 {[%emt 0:00:51]} 11. Be2 {[%emt 0:00:31]} Ne4 {[%emt 0:01:18]} 12. O-O {[%emt 0:01:09]} O-O {[%emt 0:01:49]} 13. Nxe4 {[%emt 0:03:59]} Bxe4 {[%emt 0:03:02]} 14. Qc3 {[%emt 0:00:19]} Bxf3 {[%emt 0:20:10]} 15. Bxf3 {[%emt 0:01:26][%cal Be2f3,Bf3e4,Be4f5,Bf5g4,Bg4h5][%mdl 32]} e5 {[%emt 0:00:09]} 16. dxe5 {[%emt 0:00:59]} Qe7 {[%emt 0:00:54][%cal Rd7e5]} 17. e4 {[%emt 0:00:57]} dxe4 {[%emt 0:14:51]} 18. Bxe4 {[%emt 0:00:45] Bc2 would now be deadly.} Qxc5 {[%emt 0:00:18]} 19. Qxc5 {[%emt 0:00:28]} Nxc5 {[%emt 0:00:09][%cal Bd7c5,Bc5e6,Be6d4][%mdl 32]} 20. Bf5 {[%emt 0:00:02]} Re8 {[%emt 0:01:18]} 21. Rac1 {[%emt 0:01:13]} Ne6 {[%emt 0:03:04]} 22. Rfe1 {[%emt 0:00:39]} Nd4 {[%emt 0:01:50]} 23. Bg4 {[%emt 0:01:38]} Raa8 {[%emt 0:02:18]} 24. h4 {[%emt 0:01:21]} Rad8 {[%emt 0:01:42]} 25. b4 {[%emt 0:05:53]} Rd5 {[%emt 0:07:18]} 26. Rc5 {[%emt 0:00:13]} f5 {[%emt 0:21:30]} 27. Rxd5 {[%emt 0:00:29]} cxd5 {[%emt 0:00:06]} 28. Bh5 {[%emt 0:00:12]} Re7 {[%emt 0:00:05]} (28... Re6 {simplifies} 29. Rd1 Nc6 30. Rxd5 Bxe5 31. Bxe5 Nxe5 32. hxg5 hxg5 33. b5 g4) 29. Rd1 {[%emt 0:01:32]} Nc6 {[%emt 0:00:10]} 30. Rxd5 {[%emt 0:00:09]} (30. b5 {simplifies} axb5 31. Rxd5 Bxe5 32. hxg5 hxg5 33. Rxb5 Kg7 34. Bxe5+ Nxe5 35. Bd1) 30... Nxb4 {[%emt 0:00:11]} (30... Bxe5 {simplifies} 31. Bxe5 Nxe5 32. Kh2 Re6) 31. Rd6 {[%emt 0:03:31]} f4 {[%emt 0:09:22]} 32. e6 {[%emt 0:02:07]} Be5 {[%emt 0:04:18]} 33. Rd7 {[%emt 0:01:54]} Kf8 {[%emt 0:01:26]} 34. Rd8+ {[%emt 0:00:34]} Kg7 {[%emt 0:00:06]} 35. Bf7 {[%emt 0:00:01]} Nxa2 {[%emt 0:00:21]} 36. Rg8+ {[%emt 0:00:01]} Kf6 {[%emt 0:00:53]} 37. Rg6+ {[%emt 0:00:02]} Kf5 {[%emt 0:00:12]} 38. Rxh6 {[%emt 0:00:00]} gxh4 {[%emt 0:01:30]} 39. Rh5+ {[%emt 0:00:25]} Ke4 {[%emt 0:00:23]} (39... Kf6 $11) 40. Rxh4 {[%emt 0:00:10]} ({White should play} 40. f3+ $16 Kd4 41. Kf1) 40... Nc3 $11 {[%emt 0:00:09]} 41. g3 {[%emt 0:44:50][%cal Rg3f4,Bg2g3,Bg3g4,Bg4g5,Bg5g6][%mdl 32]} Kf5 {[%emt 0:06:40]} (41... b5 $11 {remains equal.}) 42. Rh5+ $16 {[%emt 0:00:00]} ({Much worse is} 42. gxf4 $6 Ne2+ 43. Kf1 (43. Kg2 Bxf4 44. Kf1 Bxh2 $11) 43... Nxf4 $11) 42... Kf6 {[%emt 0:03:36] [#]} 43. g4 {[%emt 0:00:00]} ({Stronger than} 43. gxf4 Bxf4 44. Kf1 Bxh2 45. Rxh2 Nd5 $11) 43... Ne2+ $2 {[%emt 0:01:19][%mdl 8192] This move loses the game for Black.} (43... Rxe6 $16 44. Bxe6 (44. Rf5+ Ke7 $14) 44... Kxe6) 44. Kf1 $18 {[%emt 0:00:00] White is clearly winning.} Nd4 {[%emt 0:00:06] [#] Prevents Rf5+} 45. g5+ $1 {[%emt 0:00:00]} Kg7 {[%emt 0:18:22]} 46. g6 {[%emt 0:00:00]} Nf3 {[%emt 0:00:07]} 47. Rh7+ {[%emt 0:00:00]} Kf8 {[%emt 0:00:06] [#]} 48. Bxf4 $1 {[%emt 0:00:00][%mdl 512] Weighted Error Value: White=0.11 (very precise) /Black=0.18 (very precise) .  Loses game:     	---       	Black=1      Mistake:       	White=1     	Black=2      Inaccurate:     	White=3     	Black=2      OK:         	White=17    	Black=17     Best:        	White=1     	Black=3} 1-0

[Event "Fagernes Chess GM-Swiss 2024"]
[Site "Fagernes"]
[Date "2024.03.24"]
[Round "1.23"]
[White "Oksendal, Martin"]
[Black "Elsness, Frode"]
[Result "1/2-1/2"]
[ECO "C78"]
[WhiteElo "2086"]
[BlackElo "2437"]
[Annotator "TA"]
[PlyCount "61"]
[EventDate "2024.03.25"]
[EventType "swiss"]
[EventCountry "NOR"]
[SourceTitle "playchess.com"]
[Source "ChessBase"]
[SourceQuality "1"]
[TimeControl "40/6000+30:2400+30"]

{[%evp 24,61,42,36,60,46,38,8,28,0,0,0,0,0,0,0,0,0,0,0,0,8,8,-54,13,15,11,13,16,4,5,5,8,11,4,7,7,2,9,11]} 1. e4 {[%emt 0:00:24]} e5 {[%emt 0:00:06]} 2. Nf3 {[%emt 0:00:35]} Nc6 {[%emt 0:00:04]} 3. Bb5 {[%emt 0:00:04][%cal Bf1b5,Bb5a4,Ba4b3][%mdl 32]} a6 {[%emt 0:00:12]} 4. Ba4 {[%emt 0:00:04]} Nf6 {[%emt 0:00:12]} 5. O-O {[%emt 0:00:07]} b5 {[%emt 0:00:11]} 6. Bb3 {[%emt 0:00:07]} Bc5 {[%emt 0:00:07]} 7. a4 {[%emt 0:00:04]} Rb8 {[%emt 0:00:25]} 8. c3 {[%emt 0:00:11]} d6 {[%emt 0:00:45]} 9. d4 {[%emt 0:00:03]} Bb6 {[%emt 0:00:17]} 10. axb5 {[%emt 0:00:32]} axb5 {[%emt 0:00:08]} 11. Na3 {[%emt 0:00:09]} O-O {[%emt 0:02:20]} 12. Nxb5 {[%emt 0:01:05]} Bg4 {[%emt 0:00:29]} 13. Bc2 {[%emt 0:00:04]} Bxf3 {[%emt 0:00:45]} 14. gxf3 {[%emt 0:00:23]} (14. Qxf3 exd4 15. Bg5 dxc3 16. bxc3 Re8 $11) 14... Nh5 {[%emt 0:00:36]} 15. f4 {[%emt 0:00:07]} Nxf4 {[%emt 0:00:44]} 16. Bxf4 {[%emt 0:00:11]} exf4 {[%emt 0:00:04]} 17. Qg4 {[%emt 0:00:07] Repels Qg5} Ne7 {[%emt 0:01:45]} 18. Qxf4 {[%emt 0:01:29]} f5 $1 {[%emt 0:00:41]} 19. exf5 {[%emt 0:00:13]} c6 {[%emt 0:00:35]} 20. Na3 {[%emt 0:00:03]} (20. Nxd6 $2 Bc7 21. b4 (21. f6 $2 Rxf6 22. Qe4 Rg6+ 23. Kh1 Qxd6 $19) 21... Bxd6 $19 (21... Qxd6 22. Qxd6 Bxd6 23. Ra6 $17)) 20... d5 {[%emt 0:01:27] Wards off Nc4} 21. Rae1 {[%emt 0:01:29]} Bc7 {[%emt 0:01:30]} 22. Qg4 {[%emt 0:00:04]} Rf6 {[%emt 0:28:23]} 23. Kh1 {[%emt 0:05:28]} (23. Re3 $11) 23... Qd6 {[%emt 0:11:03]} (23... Rxb2 $15 24. Re2 Bd6 (24... Nxf5 25. Rfe1 $14)) 24. f4 {[%emt 0:00:39] The position is equal.} Rbf8 {[%emt 0:04:29][%cal Re7f5,Bb8f8,Bf8f7,Bf7f6,Bf6h6][%mdl 32]} ({Of course not} 24... Rxb2 $6 25. Rg1 Rf7 (25... Qxa3 26. Qxg7#) 26. Re6 Qxf4 (26... Qxa3 $2 {perishes.} 27. f6 $18) 27. Qh3 Qxh2+ (27... Nxf5 $2 28. Re8+ Rf8 29. Rxf8+ Kxf8 30. Rf1 $18) 28. Qxh2 $16) 25. Rg1 {[%emt 0:00:22]} R8f7 {[%emt 0:05:28]} 26. Re6 {[%emt 0:03:41]} (26. Nb1 {simplifies} Qxf4 27. Qxf4 Bxf4 28. Rgf1) 26... Qxf4 {[%emt 0:01:02]} 27. Qxf4 {[%emt 0:00:07]} Bxf4 {[%emt 0:00:07]} 28. Rxf6 {[%emt 0:00:07]} Rxf6 {[%emt 0:00:13]} 29. Rf1 {[%emt 0:00:04]} Bd6 {[%emt 0:04:26]} 30. Kg2 {[%emt 0:00:05]} Rh6 {[%emt 0:02:48]} 31. h3 {[%emt 0:01:36] Weighted Error Value: White=0.09 (flawless) /Black=0.08 (flawless) .  Mistake:       	White=1     	Black=1      Inaccurate:     	White=2     	---        OK:         	White=8     	Black=11     Best:        	---       	Black=1      Strong:       	---       	Black=1} 1/2-1/2

[Event "Fagernes Chess GM-Swiss 2024"]
[Site "Fagernes"]
[Date "2024.03.24"]
[Round "1.24"]
[White "Trost, Edvin"]
[Black "Havik, Victor"]
[Result "1-0"]
[ECO "D35"]
[WhiteElo "2432"]
[BlackElo "2078"]
[Annotator "TA"]
[PlyCount "69"]
[EventDate "2024.03.25"]
[EventType "swiss"]
[EventCountry "NOR"]
[SourceTitle "playchess.com"]
[Source "ChessBase"]
[SourceQuality "1"]
[TimeControl "40/6000+30:2400+30"]

{[%evp 15,69,12,16,17,23,19,20,18,29,0,8,0,36,43,25,18,12,6,9,25,0,0,0,-97,0,0,0,0,0,0,0,0,70,0,67,66,127,139,179,168,164,176,235,206,201,207,196,180,252,248,525,522,785,768,822,818]} 1. d4 {[%emt 0:00:05]} Nf6 {[%emt 0:00:14]} 2. c4 {[%emt 0:01:03]} e6 {[%emt 0:00:11]} 3. Nc3 {[%emt 0:00:07]} d5 {[%emt 0:00:34]} 4. cxd5 {[%emt 0:00:07]} exd5 {[%emt 0:00:12]} 5. Bg5 {[%emt 0:00:07]} c6 {[%emt 0:00:52]} 6. e3 {[%emt 0:00:36]} h6 {[%emt 0:00:24]} 7. Bh4 {[%emt 0:00:07]} Be7 {[%emt 0:00:07]} 8. Bd3 {[%emt 0:00:05]} O-O {[%emt 0:00:27]} 9. Nge2 {[%emt 0:00:13]} Re8 {[%emt 0:01:20]} 10. O-O {[%emt 0:02:28]} a5 {[%emt 0:04:08]} 11. Rc1 {[%emt 0:02:45] The position is equal.} Nbd7 {[%emt 0:04:31]} 12. f3 {[%emt 0:02:02]} b5 {[%emt 0:04:32][%cal Bb7b5,Bb5b4][%mdl 32]} 13. Bf2 {[%emt 0:06:23]} Ba6 {[%emt 0:04:17]} 14. Ng3 {[%emt 0:09:08]} Bf8 {[%emt 0:17:03]} 15. e4 {[%emt 0:17:49]} b4 {[%emt 0:02:04] [#] And now ...Bxd3 would win.} 16. Na4 {[%emt 0:02:02]} Bxd3 {[%emt 0:00:55]} 17. Qxd3 {[%emt 0:00:07] Black must now prevent e5.} dxe4 {[%emt 0:00:49]} 18. fxe4 {[%emt 0:00:07][%cal Oh2h3]} h5 {[%emt 0:10:39]} 19. h4 {[%emt 0:16:50] [#]} (19. Rxc6 $2 Ne5 20. Qc2 Nxc6 21. Qxc6 Rc8 $19) (19. Qf3 $11 {keeps the balance.} h4 20. Nf5 Nxe4 21. Bxh4 (21. Rxc6 Nd2 $19)) 19... Ng4 {[%emt 0:19:20]} ({Black should play} 19... g6 $1 $17 {Hoping for ...Ng4.} 20. Be3 (20. Rxc6 $2 Ne5 $19) 20... c5) 20. Nxh5 $11 {[%emt 0:00:50] Qf3 is the strong threat.} Nxf2 {[%emt 0:00:18]} 21. Rxf2 {[%emt 0:00:10] Qf3 would now be deadly.} Qxh4 {[%emt 0:00:14]} 22. Qf3 {[%emt 0:00:56]} Re7 {[%emt 0:03:11]} 23. Ng3 {[%emt 0:02:14]} Qg5 {[%emt 0:08:27] Prevents Nf5.} (23... g6 $11) 24. Rfc2 {[%emt 0:04:10]} ({Of course not} 24. Rxc6 Qb5 25. Rd6 (25. Nf5 Qxc6 26. Nxe7+ Bxe7 $11) 25... Qxa4 $11) (24. Rff1 $14) 24... Re6 {[%emt 0:02:33]} ({Black should try} 24... Rd8 $11) 25. e5 $1 $14 {[%emt 0:01:01][%cal Og3e4]} Nxe5 {[%emt 0:06:41]} 26. dxe5 $16 {[%emt 0:00:37]} Rxe5 {[%emt 0:00:03]} 27. Rf1 {[%emt 0:03:52]} ({Don't do} 27. Rxc6 Ra6) 27... Ra7 {[%emt 0:03:00]} 28. Rxc6 {[%emt 0:03:17]} Rae7 {[%emt 0:05:14]} (28... Qd8 {is a better defense.} 29. b3 Rd7) 29. Nf5 {[%emt 0:01:04]} Rd7 {[%emt 0:00:00]} 30. Rc8 {[%emt 0:05:04]} g6 {[%emt 0:03:47]} 31. Ng3 {[%emt 0:03:24][%cal Bf5g3,Bg3e2,Be2f4][%mdl 32]} f5 {[%emt 0:01:34]} (31... Qd2 $142 32. b3 Qd6) 32. Ne2 $18 {[%emt 0:01:44]} Kg7 $2 {[%emt 0:01:20]} (32... Rd8 {was worth a try.} 33. Rxd8 Qxd8) 33. Nf4 {[%emt 0:01:00] White is clearly winning.} Rd4 {[%emt 0:03:13]} 34. Qb7+ {[%emt 0:03:42]} Be7 {[%emt 0:00:42]} 35. Qb8 {[%emt 0:00:29] Weighted Error Value: White=0.13 (very precise) /Black=0.39.  Mistake:       	White=2     	Black=7      Inaccurate:     	---       	Black=2      OK:         	White=9     	Black=7      Best:        	White=2     	Black=3      Strong:       	White=1     	---} 1-0

[Event "Fagernes Chess GM-Swiss 2024"]
[Site "Fagernes"]
[Date "2024.03.24"]
[Round "1.25"]
[White "Zheng, Harry Z"]
[Black "Sorensen, Hampus"]
[Result "1/2-1/2"]
[ECO "C60"]
[WhiteElo "2077"]
[BlackElo "2428"]
[Annotator "TA"]
[PlyCount "178"]
[EventDate "2024.03.25"]
[EventType "swiss"]
[EventCountry "NOR"]
[SourceTitle "playchess.com"]
[Source "ChessBase"]
[SourceQuality "1"]
[TimeControl "40/6000+30:2400+30"]

{[%evp 9,177,46,59,-1,-9,-9,-14,-33,-52,-42,-37,-38,-52,-65,-29,-42,-45,-47,-50,-54,-50,-59,-39,-51,-31,-35,-37,-30,-31,-50,0,-20,0,0,0,-10,0,-48,-33,-43,0,0,14,-27,-27,-28,-29,-20,-28,-43,-41,-38,-33,-27,-31,-29,-16,-20,-15,-24,-12,-25,-12,-12,-12,-13,-12,-20,0,-12,0,0,0,-12,-13,-28,-8,-14,-14,-14,-17,-24,-24,-32,-32,-32,-32,-33,-14,-15,-17,-15,-12,-15,-17,-25,0,0,0,0,0,0,0,0,0,0,0,0,0,0,0,0,0,0,0,0,0,0,0,0,0,0,0,-8,0,-20,-20,-20,-8,-20,-20,-20,-20,-20,-20,-20,-20,-20,-20,-20,-20,-20,-20,-20,-20,-20,-8,-8,0,0,0,0,0,0,0,0,0,0,0,0,0,0,0,0,0,0,0,0,0,0]} 1. e4 {[%emt 0:00:06]} e5 {[%emt 0:00:14]} 2. Nf3 {[%emt 0:00:14]} Nc6 {[%emt 0:00:09]} 3. Bb5 {[%emt 0:00:22]} Nge7 {[%emt 0:00:08]} 4. c3 {[%emt 0:06:29]} d5 {[%emt 0:01:20]} 5. Nxe5 {[%emt 0:12:37]} dxe4 {[%emt 0:00:18]} 6. d4 {[%emt 0:02:52]} (6. Qe2 $14) 6... exd3 $11 {[%emt 0:02:34] Strongly threatening ...Qd5.} 7. Nxc6 {[%emt 0:05:15]} (7. Qf3 {seems wilder.} Be6 8. O-O Qd5 9. Qxd5 Bxd5 10. Nxc6 Bxc6 11. Bxd3 O-O-O 12. Bc2) 7... Nxc6 {[%emt 0:03:44]} 8. Qxd3 {[%emt 0:02:37]} (8. Bxd3 $5 Bg4 9. Qc2 $11) 8... Qxd3 {[%emt 0:11:43]} 9. Bxd3 {[%emt 0:00:12]} Be6 {[%emt 0:01:41]} 10. Bf4 {[%emt 0:12:36]} O-O-O {[%emt 0:01:08]} 11. Be4 {[%emt 0:05:59]} Ne7 {[%emt 0:21:14]} 12. Nd2 {[%emt 0:08:53]} Ng6 {[%emt 0:11:33]} 13. Bxg6 {[%emt 0:05:58]} hxg6 {[%emt 0:00:19]} 14. O-O {[%emt 0:02:18] White is weak on the light squares} f6 {[%emt 0:03:05]} 15. Nb3 {[%emt 0:03:48]} g5 {[%emt 0:03:42]} 16. Bg3 {[%emt 0:02:02]} c5 {[%emt 0:11:13]} 17. Rad1 {[%emt 0:04:58]} Rxd1 {[%emt 0:01:35]} 18. Rxd1 {[%emt 0:00:08]} b6 {[%emt 0:00:15]} 19. Nd2 {[%emt 0:03:46]} Bd5 {[%emt 0:10:51]} ({Much weaker is} 19... Bxa2 $6 20. b3 $14 (20. Ra1 Bd5 $11)) ({Better is} 19... Be7 $15 20. Nf1 c4 (20... Bxa2 21. Ra1 $15)) 20. b3 {[%emt 0:05:35]} f5 {[%emt 0:09:48] [#] aiming for ...f4.} 21. Be5 {[%emt 0:02:03]} Rh6 {[%emt 0:00:09]} 22. Nf1 {[%emt 0:12:50]} Bc6 {[%emt 0:08:30]} 23. c4 {[%emt 0:01:42]} (23. Ne3 $11 {is superior.}) 23... Re6 $15 {[%emt 0:00:25]} 24. Bc3 {[%emt 0:00:25]} f4 {[%emt 0:00:57]} 25. f3 {[%emt 0:00:55]} a6 {[%emt 0:02:52]} 26. a4 {[%emt 0:02:27] [#]} g4 $1 {[%emt 0:01:49]} 27. fxg4 {[%emt 0:02:35]} f3 {[%emt 0:00:01]} 28. gxf3 {[%emt 0:01:49]} Bxf3 {[%emt 0:00:01]} 29. Rd3 {[%emt 0:01:57]} Bxg4 {[%emt 0:00:03]} 30. Re3 {[%emt 0:00:11]} g6 {[%emt 0:01:43]} 31. Rxe6 {[%emt 0:00:53]} Bxe6 {[%emt 0:00:01][%mdl 4096] Endgame. KBB-KBN} 32. Ne3 {[%emt 0:00:41]} Bd6 {[%emt 0:01:45]} 33. h4 $1 {[%emt 0:00:55]} Be7 {[%emt 0:01:27]} 34. Be1 {[%emt 0:00:09]} Kb7 {[%emt 0:00:12]} 35. Kf1 {[%emt 0:00:36]} Kc6 {[%emt 0:00:21]} 36. Ke2 {[%emt 0:00:24]} Bf6 {[%emt 0:00:55]} 37. Bg3 {[%emt 0:00:12]} Bd4 {[%emt 0:00:20]} 38. Kd3 {[%emt 0:00:50]} Bg8 {[%emt 0:00:30]} 39. Bf4 {[%emt 0:00:37]} Bf7 {[%emt 0:00:38]} 40. Ng4 {[%emt 0:00:33]} Be6 {[%emt 0:00:11]} 41. Ne3 {[%emt 0:40:29]} Bf6 {[%emt 0:03:37] This pair of bishops is nice.} 42. Bg3 {[%emt 0:00:00]} Bc8 {[%emt 0:01:27]} 43. Kd2 {[%emt 0:00:00]} Bd8 {[%emt 0:01:05]} 44. Kd3 {[%emt 0:00:00]} Kd7 {[%emt 0:02:17]} 45. Ke4 {[%emt 0:00:00]} Bb7+ {[%emt 0:01:46]} 46. Nd5 {[%emt 0:00:00]} Ke6 {[%emt 0:03:37]} 47. Bf2 {[%emt 0:00:00]} Be7 {[%emt 0:12:20]} 48. Be1 {[%emt 0:00:00]} b5 {[%emt 0:08:37]} 49. axb5 {[%emt 0:00:00]} axb5 {[%emt 0:00:02]} 50. Bf2 {[%emt 0:00:00]} Bc6 {[%emt 0:00:08]} 51. Be1 {[%emt 0:00:00]} Bf6 {[%emt 0:00:35]} 52. Bg3 {[%emt 0:00:00]} Bxd5+ {[%emt 0:00:43]} 53. cxd5+ $11 {[%emt 0:00:00] KB-KB. The position is equal.} Kd7 {[%emt 0:00:52]} 54. Bf2 {[%emt 0:00:00]} c4 {[%emt 0:00:20]} 55. bxc4 {[%emt 0:00:00]} bxc4 {[%emt 0:00:03]} 56. Bg3 {[%emt 0:00:00]} Kc8 {[%emt 0:02:27]} 57. Bf4 {[%emt 0:00:00]} Kd7 {[%emt 0:02:52]} 58. Bg3 {[%emt 0:00:08]} Kc8 {[%emt 0:01:22]} 59. Bf4 {[%emt 0:00:06]} Kb7 {[%emt 0:00:20]} 60. Bg5 {[%emt 0:00:54]} Bb2 {[%emt 0:01:03]} 61. Be3 {[%emt 0:01:38]} Kc7 {[%emt 0:01:38]} 62. Bd4 {[%emt 0:02:46]} Ba3 {[%emt 0:00:07]} 63. Bc3 {[%emt 0:00:40]} Bc5 {[%emt 0:00:27]} 64. Ke5 {[%emt 0:02:36]} Bf2 {[%emt 0:01:11]} 65. d6+ {[%emt 0:02:26]} Kc6 {[%emt 0:00:42]} 66. d7 {[%emt 0:00:44]} Bxh4 {[%emt 0:02:04]} 67. Ba5 {[%emt 0:00:23]} Kxd7 {[%emt 0:00:32] Hoping for ...Kc6.} 68. Kd5 {[%emt 0:00:11]} Bg3 {[%emt 0:01:46]} 69. Kxc4 {[%emt 0:00:09]} Ke6 {[%emt 0:00:02]} 70. Kd3 {[%emt 0:00:31]} Kf5 {[%emt 0:00:02]} 71. Ke2 {[%emt 0:00:13]} Ke4 {[%emt 0:00:10]} 72. Kf1 {[%emt 0:00:16]} Kf3 {[%emt 0:00:07]} 73. Bd8 $1 {[%emt 0:00:16] Dodges g5} Bf4 {[%emt 0:00:17]} 74. Be7 {[%emt 0:00:17]} Kg3 {[%emt 0:00:10]} 75. Bd8 {[%emt 0:00:21]} Kh3 {[%emt 0:00:05]} 76. Be7 {[%emt 0:00:29]} Bg3 {[%emt 0:00:04]} 77. Bg5 {[%emt 0:00:18]} Kg4 {[%emt 0:00:21]} 78. Kg2 {[%emt 0:00:16]} Kxg5 {[%emt 0:00:26]} 79. Kxg3 {[%emt 0:00:09] KP-K} Kf5 {[%emt 0:00:02]} 80. Kf3 {[%emt 0:00:10]} g5 {[%emt 0:00:02][%cal Bg6g5,Bg5g4,Bg4g3,Bg3g2][%mdl 32]} 81. Kg3 {[%emt 0:00:08]} g4 {[%emt 0:00:01]} 82. Kg2 {[%emt 0:00:11]} Kg5 {[%emt 0:00:03][%cal Bf5g5,Bg5h5,Bh5h4,Bh4g4,Bg4f3,Bf3g3][%mdl 32]} (82... Kf4 $5) 83. Kg3 {[%emt 0:00:10]} Kh5 {[%emt 0:00:03]} 84. Kg2 {[%emt 0:00:08]} Kh4 {[%emt 0:00:02]} 85. Kh2 {[%emt 0:00:11]} g3+ {[%emt 0:00:02]} 86. Kg2 {[%emt 0:00:08]} Kg4 {[%emt 0:00:03]} 87. Kg1 {[%emt 0:00:11]} Kf3 {[%emt 0:00:04] ( -> ...g2)} (87... Kh3 $5 88. Kh1 $8 Kh4 $11) 88. Kf1 {[%emt 0:00:06]} g2+ {[%emt 0:00:01]} 89. Kg1 {[%emt 0:00:09]} Kg3 {[%emt 0:00:01] Weighted Error Value: White=0.08 (flawless) /Black=0.08 (flawless) .  Mistake:       	White=1     	Black=1      Inaccurate:     	White=1     	Black=2      OK:         	White=26    	Black=31     Best:        	White=10    	Black=4      Strong:       	White=2     	---} 1/2-1/2

[Event "Fagernes Chess GM-Swiss 2024"]
[Site "Fagernes"]
[Date "2024.03.24"]
[Round "1.26"]
[White "Johansson, Linus"]
[Black "Sian, Shadi"]
[Result "1-0"]
[ECO "D35"]
[WhiteElo "2427"]
[BlackElo "2076"]
[Annotator "RC"]
[PlyCount "115"]
[EventDate "2024.03.25"]
[EventType "swiss"]
[EventCountry "NOR"]
[SourceTitle "playchess.com"]
[Source "ChessBase"]
[SourceQuality "1"]
[TimeControl "40/6000+30:2400+30"]

1. d4 Nf6 2. c4 e6 3. Nc3 d5 4. cxd5 exd5 5. Bg5 Be7 6. e3 O-O 7. Bd3 h6 8. Bf4 c5 9. Nge2 Nc6 10. O-O Be6 11. Rc1 c4 12. Bb1 Qd7 13. Be5 Ng4 14. Bg3 f5 15. b3 Ba3 16. bxc4 Bxc1 17. Nxc1 Ne7 18. c5 Nf6 19. f3 Nc6 20. Nd3 Qf7 21. Nb5 Nh5 22. Bd6 Rfd8 23. Ne5 Nxe5 24. Bxe5 Nf6 25. Nd6 Qe7 26. Qd3 g6 27. Nxb7 Qxb7 28. Bxf6 Re8 29. Be5 Bd7 30. Bc2 Bc6 31. Rb1 Qd7 32. Qa6 Re6 33. Qa5 Rae8 34. f4 Rc8 35. h3 h5 36. Qe1 Qd8 37. Qg3 h4 38. Qe1 Kf7 39. Kh2 Qe7 40. a4 Kg8 41. a5 Rf8 42. Qe2 Qd7 43. a6 Ba8 44. Bd3 Bc6 45. Qf2 Qd8 46. Rb3 Qe7 47. Qb2 Rxe5 48. fxe5 Qg5 49. Qf2 Ba4 50. Rb1 Qh6 51. g3 hxg3+ 52. Qxg3 Kh8 53. Rg1 f4 54. exf4 Rxf4 55. Bxg6 Rxd4 56. Be4 Rd2+ 57. Kh1 Qxh3+ 58. Qxh3# 1-0

[Event "Fagernes Chess GM-Swiss 2024"]
[Site "Fagernes"]
[Date "2024.03.24"]
[Round "1.27"]
[White "Valcu, Lavinia"]
[Black "Tsolakidou, Stavroula"]
[Result "0-1"]
[ECO "E73"]
[WhiteElo "2070"]
[BlackElo "2424"]
[Annotator "RC"]
[PlyCount "42"]
[EventDate "2024.03.25"]
[EventType "swiss"]
[EventCountry "NOR"]
[SourceTitle "playchess.com"]
[Source "ChessBase"]
[SourceQuality "1"]
[TimeControl "40/6000+30:2400+30"]

1. d4 {[%emt 0:00:03]} Nf6 {[%emt 0:00:09]} 2. c4 {[%emt 0:00:06]} g6 {[%emt 0:00:18]} 3. Nc3 {[%emt 0:00:08]} Bg7 {[%emt 0:00:08]} 4. e4 {[%emt 0:00:06]} d6 {[%emt 0:00:11]} 5. Be2 {[%emt 0:00:11]} O-O {[%emt 0:00:12]} 6. Be3 {[%emt 0:00:05]} Na6 {[%emt 0:00:48]} 7. h4 {[%emt 0:00:06]} h5 {[%emt 0:01:05]} 8. Nh3 {[%emt 0:01:28]} c5 {[%emt 0:07:20]} 9. f3 {[%emt 0:07:54]} cxd4 {[%emt 0:07:09]} 10. Bxd4 {[%emt 0:00:11]} Nb4 {[%emt 0:03:51]} 11. Nb5 {[%emt 0:12:17]} a6 {[%emt 0:07:34]} 12. Bc3 {[%emt 0:01:19]} axb5 {[%emt 0:01:32]} 13. Bxb4 {[%emt 0:00:12]} bxc4 {[%emt 0:03:13]} 14. Bxc4 {[%emt 0:03:19]} Qb6 {[%emt 0:06:51]} 15. Bc3 {[%emt 0:19:42]} d5 {[%emt 0:05:19]} 16. exd5 {[%emt 0:02:08]} Bxh3 {[%emt 0:03:40]} 17. Rxh3 {[%emt 0:06:49]} Rfc8 {[%emt 0:01:48]} 18. Qb3 {[%emt 0:05:23]} Qc5 {[%emt 0:05:21]} 19. Bxf6 {[%emt 0:05:39]} exf6 {[%emt 0:00:29]} 20. Bf1 {[%emt 0:03:34]} Re8+ {[%emt 0:00:18]} 21. Kd1 {[%emt 0:00:41]} Qf2 {[%emt 0:00:21]} 0-1